[Event "Delancey UK Schools 2019 U14"]
[Site "Daventry"]
[Date "2019.09.24"]
[Round "2.7"]
[White "Wang, Susie"]
[Black "Sheikh, Anum"]
[Result "1/2-1/2"]
[ECO "B84"]
[WhiteElo "1515"]
[BlackElo "1755"]
[Annotator "NA"]
[PlyCount "92"]
[EventDate "2019.09.24"]
[EventCountry "GBR"]
[SourceTitle "playchess.com"]
[Source "ChessBase"]
[SourceQuality "1"]
[TimeControl "40/5400+30:1800+30"]

1. e4 {[%emt 1:10:12]} c5 {[%emt 1:10:11]} 2. Nf3 {[%emt 0:00:22]} e6 {[%emt 0:00:21]} 3. d4 {[%emt 0:00:21]} cxd4 {[%emt 0:00:22]} 4. Nxd4 {[%emt 0:00:22]} Nf6 {[%emt 0:00:22]} 5. Nc3 {[%emt 0:00:24]} d6 {[%emt 0:00:21]} 6. Be3 {[%emt 0:00:55]} a6 {[%emt 0:00:23]} 7. Be2 {[%emt 0:00:33]} Be7 {[%emt 0:00:31]} 8. O-O {[%emt 0:00:24]} O-O {[%emt 0:00:22]} 9. Qd2 {[%emt 0:00:37]} Qc7 {[%emt 0:00:33]} 10. a4 {[%emt 0:00:28]} b6 {[%emt 0:00:31]} 11. f4 {[%emt 0:00:51]} Bb7 {[%emt 0:00:22]} 12. Bf3 {[%emt 0:00:27]} Nbd7 {[%emt 0:00:21]} 13. Rfd1 {[%emt 0:01:06]} Rfd8 {[%emt 0:01:03]} 14. Nb3 {[%emt 0:02:59]} Nc5 {[%emt 0:00:46]} 15. Nxc5 {[%emt 0:01:04]} dxc5 {[%emt 0:00:27]} 16. Qf2 {[%emt 0:02:06]} Rac8 {[%emt 0:02:15]} 17. Qg3 {[%emt 0:02:58]} Kh8 {[%emt 0:00:55]} 18. h4 {[%emt 0:03:11]} Qb8 {[%emt 0:01:09]} 19. e5 {[%emt 0:01:34]} Nd5 {[%emt 0:00:36]} 20. Nxd5 {[%emt 0:00:46]} Bxd5 {[%emt 0:00:25]} 21. Bf2 {[%emt 0:02:23]} Qb7 {[%emt 0:00:44]} 22. Bh5 {[%emt 0:01:25]} Bf8 {[%emt 0:01:30]} 23. Kh2 {[%emt 0:03:02]} b5 {[%emt 0:00:53]} 24. axb5 {[%emt 0:00:54]} axb5 {[%emt 0:00:33]} 25. Ra3 {[%emt 0:00:41]} b4 {[%emt 0:00:30]} 26. Ra5 {[%emt 0:00:46]} Ra8 {[%emt 0:00:56]} 27. Rda1 {[%emt 0:00:46]} Rxa5 {[%emt 0:00:35]} 28. Rxa5 {[%emt 0:00:22]} Qc7 {[%emt 0:00:34]} 29. Ra1 {[%emt 0:00:49]} Ra8 {[%emt 0:01:38]} 30. Rxa8 {[%emt 0:00:41]} Bxa8 {[%emt 0:00:22]} 31. Qd3 {[%emt 0:00:56]} c4 {[%emt 0:00:34]} 32. Qd4 {[%emt 0:00:34]} h6 {[%emt 0:01:47]} 33. c3 {[%emt 0:00:50]} b3 {[%emt 0:01:32]} 34. Be2 {[%emt 0:00:38]} Bd5 {[%emt 0:00:23]} 35. Kg3 {[%emt 0:00:34]} Qc6 {[%emt 0:00:42]} 36. Bf3 {[%emt 0:00:29]} Bxf3 {[%emt 0:00:23]} 37. gxf3 {[%emt 0:00:21]} Kh7 {[%emt 0:02:14]} 38. h5 {[%emt 0:00:34]} Qb5 {[%emt 0:00:47]} 39. Qa7 {[%emt 0:00:35]} Kg8 {[%emt 0:00:45]} 40. Kg4 {[%emt 0:00:33]} f5+ {[%emt 0:00:39]} 41. Kg3 {[%emt 0:30:34]} Qd5 {[%emt 0:31:45]} 42. Bd4 {[%emt 0:00:28]} Qc6 {[%emt 0:01:25]} 43. Qa5 {[%emt 0:00:30]} Qb7 {[%emt 0:02:09]} 44. Kf2 {[%emt 0:00:29]} Be7 {[%emt 0:02:12]} 45. Kg3 {[%emt 0:00:25]} Qc8 {[%emt 0:00:32]} 46. Qb6 {[%emt 0:00:36]} Kf7 {[%emt 0:00:52]} 1/2-1/2

[Event "Delancey UK Schools 2019 U14"]
[Site "Daventry"]
[Date "2019.09.24"]
[Round "2.8"]
[White "Sheikh, Samia Zannat"]
[Black "Dicen, Imogen"]
[Result "1-0"]
[ECO "A85"]
[WhiteElo "1512"]
[BlackElo "1509"]
[Annotator "NA"]
[PlyCount "167"]
[EventDate "2019.09.24"]
[EventCountry "GBR"]
[SourceTitle "playchess.com"]
[Source "ChessBase"]
[SourceQuality "1"]
[TimeControl "40/5400+30:1800+30"]

1. d4 {[%emt 1:10:11]} f5 {[%emt 1:10:11]} 2. c4 {[%emt 0:00:22]} Nf6 {[%emt 0:00:21]} 3. Nc3 {[%emt 0:00:22]} e6 {[%emt 0:00:22]} 4. Nf3 {[%emt 0:00:24]} b6 {[%emt 0:00:22]} 5. Bg5 {[%emt 0:00:28]} Be7 {[%emt 0:00:22]} 6. h3 {[%emt 0:00:32]} Bb7 {[%emt 0:00:21]} 7. e3 {[%emt 0:00:23]} a5 {[%emt 0:00:23]} 8. a3 {[%emt 0:00:38]} Na6 {[%emt 0:00:43]} 9. Be2 {[%emt 0:00:39]} O-O {[%emt 0:00:28]} 10. O-O {[%emt 0:00:30]} d6 {[%emt 0:00:23]} 11. Qb3 {[%emt 0:00:45]} Kh8 {[%emt 0:00:32]} 12. Rac1 {[%emt 0:00:55]} Rb8 {[%emt 0:01:28]} 13. Rfd1 {[%emt 0:00:41]} Ne4 {[%emt 0:00:42]} 14. Bxe7 {[%emt 0:01:06]} Qxe7 {[%emt 0:00:22]} 15. Nxe4 {[%emt 0:00:37]} fxe4 {[%emt 0:00:42]} 16. Nd2 {[%emt 0:00:40]} Qh4 {[%emt 0:00:46]} 17. Rf1 {[%emt 0:00:42]} Rf6 {[%emt 0:00:55]} 18. Qb5 {[%emt 0:01:59]} Rf5 {[%emt 0:01:39]} 19. Qd7 {[%emt 0:01:23]} Rf6 {[%emt 0:02:01]} 20. d5 {[%emt 0:01:29]} exd5 {[%emt 0:00:58]} 21. cxd5 {[%emt 0:00:27]} Rbf8 {[%emt 0:00:53]} 22. Qg4 {[%emt 0:01:01]} Qxg4 {[%emt 0:01:17]} 23. hxg4 {[%emt 0:00:31]} Nc5 {[%emt 0:01:59]} 24. b4 {[%emt 0:00:41]} axb4 {[%emt 0:00:22]} 25. axb4 {[%emt 0:00:22]} Nd3 {[%emt 0:00:37]} 26. Rxc7 {[%emt 0:00:42]} Bxd5 {[%emt 0:00:32]} 27. b5 {[%emt 0:00:55]} Nxf2 {[%emt 0:01:06]} 28. g5 {[%emt 0:01:01]} Rf5 {[%emt 0:01:03]} 29. g4 {[%emt 0:00:37]} Nxg4 {[%emt 0:00:48]} 30. Bxg4 {[%emt 0:00:35]} Rxf1+ {[%emt 0:00:49]} 31. Nxf1 {[%emt 0:00:22]} Kg8 {[%emt 0:00:42]} 32. Rd7 {[%emt 0:00:32]} Bc4 {[%emt 0:00:29]} 33. Nd2 {[%emt 0:00:52]} Bxb5 {[%emt 0:00:24]} 34. Rxd6 {[%emt 0:00:30]} Bd3 {[%emt 0:01:01]} 35. Rxb6 {[%emt 0:00:26]} Ra8 {[%emt 0:00:42]} 36. Bf5 {[%emt 0:01:01]} Ra1+ {[%emt 0:01:59]} 37. Kf2 {[%emt 0:00:54]} Ra5 {[%emt 0:00:27]} 38. Bxe4 {[%emt 0:00:40]} Bxe4 {[%emt 0:00:36]} 39. Nxe4 {[%emt 0:00:22]} Ra8 {[%emt 0:00:26]} 40. Nd6 {[%emt 0:00:31]} Kf8 {[%emt 0:01:15]} 41. Rb7 {[%emt 0:30:30]} Ra6 {[%emt 0:30:54]} 42. Nc4 {[%emt 0:01:00]} Rc6 {[%emt 0:00:50]} 43. Ne5 {[%emt 0:00:37]} Re6 {[%emt 0:01:10]} 44. Nf3 {[%emt 0:00:36]} Rg6 {[%emt 0:00:43]} 45. e4 {[%emt 0:00:31]} Re6 {[%emt 0:00:27]} 46. Ke3 {[%emt 0:00:26]} Rd6 {[%emt 0:00:43]} 47. e5 {[%emt 0:00:39]} Re6 {[%emt 0:00:25]} 48. Ke4 {[%emt 0:00:23]} Rg6 {[%emt 0:00:38]} 49. Kd5 {[%emt 0:00:42]} Ke8 {[%emt 0:00:43]} 50. e6 {[%emt 0:00:27]} Kd8 {[%emt 0:00:52]} 51. Kd6 {[%emt 0:00:29]} Kc8 {[%emt 0:00:28]} 52. Rd7 {[%emt 0:00:30]} h6 {[%emt 0:00:38]} 53. gxh6 {[%emt 0:00:43]} gxh6 {[%emt 0:00:28]} 54. Ne5 {[%emt 0:01:07]} Rg1 {[%emt 0:01:11]} 55. Ke7 {[%emt 0:01:44]} Rg7+ {[%emt 0:00:47]} 56. Nf7 {[%emt 0:00:22]} h5 {[%emt 0:00:44]} 57. Kf8 {[%emt 0:00:54]} Rg6 {[%emt 0:01:02]} 58. Rd8+ {[%emt 0:00:24]} Kc7 {[%emt 0:00:22]} 59. e7 {[%emt 0:00:23]} Re6 {[%emt 0:00:24]} 60. e8=Q {[%emt 0:00:28]} Rxe8+ {[%emt 0:00:23]} 61. Rxe8 {[%emt 0:00:23]} h4 {[%emt 0:00:23]} 62. Re3 {[%emt 0:00:22]} Kd7 {[%emt 0:00:21]} 63. Ng5 {[%emt 0:00:22]} Kd6 {[%emt 0:00:22]} 64. Kf7 {[%emt 0:00:25]} Kd5 {[%emt 0:00:21]} 65. Rh3 {[%emt 0:00:22]} Ke5 {[%emt 0:00:22]} 66. Rxh4 {[%emt 0:00:22]} Kf5 {[%emt 0:00:21]} 67. Nh7 {[%emt 0:00:25]} Ke5 {[%emt 0:00:23]} 68. Rh6 {[%emt 0:00:24]} Kf5 {[%emt 0:00:23]} 69. Rh5+ {[%emt 0:00:22]} Kg4 {[%emt 0:00:21]} 70. Re5 {[%emt 0:00:24]} Kf4 {[%emt 0:00:23]} 71. Kf6 {[%emt 0:00:22]} Kg4 {[%emt 0:00:23]} 72. Rf5 {[%emt 0:00:26]} Kh4 {[%emt 0:00:23]} 73. Kg6 {[%emt 0:00:34]} Kg4 {[%emt 0:00:24]} 74. Rf7 {[%emt 0:00:22]} Kh4 {[%emt 0:00:25]} 75. Rf4+ {[%emt 0:00:22]} Kg3 {[%emt 0:00:22]} 76. Kg5 {[%emt 0:00:22]} Kh3 {[%emt 0:00:22]} 77. Rf6 {[%emt 0:00:21]} Kg3 {[%emt 0:00:26]} 78. Rf5 {[%emt 0:00:22]} Kh3 {[%emt 0:00:24]} 79. Rf3+ {[%emt 0:00:21]} Kh2 {[%emt 0:00:24]} 80. Kg4 {[%emt 0:00:23]} Kg2 {[%emt 0:00:22]} 81. Rf5 {[%emt 0:00:22]} Kh2 {[%emt 0:00:23]} 82. Rf2+ {[%emt 0:00:22]} Kg1 {[%emt 0:00:22]} 83. Kg3 {[%emt 0:00:22]} Kh1 {[%emt 0:00:22]} 84. Rf1# 1-0

[Event "Delancey UK Schools 2019 U14"]
[Site "Daventry"]
[Date "2019.09.24"]
[Round "2.9"]
[White "Clarke, Connor"]
[Black "Headlong, Georgia"]
[Result "1-0"]
[ECO "A45"]
[WhiteElo "1711"]
[BlackElo "1464"]
[Annotator "NA"]
[PlyCount "135"]
[EventDate "2019.09.24"]
[EventCountry "GBR"]
[SourceTitle "playchess.com"]
[Source "ChessBase"]
[SourceQuality "1"]
[TimeControl "40/5400+30:1800+30"]

1. d4 {[%emt 1:10:13]} Nf6 {[%emt 1:10:11]} 2. Nc3 {[%emt 0:00:24]} e6 {[%emt 0:00:37]} 3. Bf4 {[%emt 0:00:25]} b6 {[%emt 0:00:29]} 4. e4 {[%emt 0:01:02]} Bb4 {[%emt 0:01:03]} 5. Qd3 {[%emt 0:00:38]} Ba6 {[%emt 0:01:24]} 6. Qf3 {[%emt 0:02:20]} Bxf1 {[%emt 0:01:03]} 7. Kxf1 {[%emt 0:00:24]} O-O {[%emt 0:01:50]} 8. Nge2 {[%emt 0:00:53]} Nc6 {[%emt 0:01:32]} 9. Bg5 {[%emt 0:02:05]} Bxc3 {[%emt 0:01:21]} 10. bxc3 {[%emt 0:00:44]} e5 {[%emt 0:01:16]} 11. d5 {[%emt 0:01:32]} Na5 {[%emt 0:00:47]} 12. Ng3 {[%emt 0:01:07]} Nc4 {[%emt 0:01:42]} 13. Kg1 {[%emt 0:03:18]} h6 {[%emt 0:01:17]} 14. Bxf6 {[%emt 0:00:38]} Qxf6 {[%emt 0:00:30]} 15. Qxf6 {[%emt 0:00:23]} gxf6 {[%emt 0:00:23]} 16. Nh5 {[%emt 0:00:37]} d6 {[%emt 0:01:22]} 17. Nxf6+ {[%emt 0:01:15]} Kg7 {[%emt 0:00:33]} 18. Nh5+ {[%emt 0:00:26]} Kg6 {[%emt 0:00:30]} 19. Ng3 {[%emt 0:00:34]} Na3 {[%emt 0:00:57]} 20. Rd1 {[%emt 0:01:41]} Nxc2 {[%emt 0:00:59]} 21. Nf5 {[%emt 0:01:18]} Kh7 {[%emt 0:02:20]} 22. Rd3 {[%emt 0:01:07]} Rg8 {[%emt 0:00:58]} 23. Kf1 {[%emt 0:02:00]} Na3 {[%emt 0:01:24]} 24. g3 {[%emt 0:01:31]} Nc4 {[%emt 0:01:26]} 25. Ke2 {[%emt 0:00:59]} b5 {[%emt 0:00:58]} 26. Rb1 {[%emt 0:00:59]} Rgb8 {[%emt 0:00:53]} 27. Ne3 {[%emt 0:01:36]} a5 {[%emt 0:01:16]} 28. Nxc4 {[%emt 0:01:06]} bxc4 {[%emt 0:00:25]} 29. Rdd1 {[%emt 0:00:24]} a4 {[%emt 0:00:45]} 30. Kd2 {[%emt 0:00:38]} a3 {[%emt 0:00:42]} 31. Rb4 {[%emt 0:00:36]} Rxb4 {[%emt 0:01:01]} 32. cxb4 {[%emt 0:00:23]} Kg6 {[%emt 0:00:55]} 33. Rc1 {[%emt 0:00:33]} Rb8 {[%emt 0:00:44]} 34. Rxc4 {[%emt 0:00:35]} Rb7 {[%emt 0:00:31]} 35. Kc3 {[%emt 0:01:00]} Kg5 {[%emt 0:00:31]} 36. f3 {[%emt 0:00:35]} h5 {[%emt 0:00:30]} 37. h4+ {[%emt 0:00:29]} Kf6 {[%emt 0:00:28]} 38. Kb3 {[%emt 0:00:33]} Ra7 {[%emt 0:00:23]} 39. b5 {[%emt 0:00:48]} Ra5 {[%emt 0:01:31]} 40. Rxc7 {[%emt 0:00:42]} Rxb5+ {[%emt 0:00:26]} 41. Kxa3 {[%emt 0:30:29]} Rb1 {[%emt 0:30:34]} 42. Rc6 {[%emt 0:00:20]} Rf1 {[%emt 0:00:31]} 43. Rxd6+ {[%emt 0:00:46]} Ke7 {[%emt 0:00:24]} 44. Rh6 {[%emt 0:00:24]} Rxf3+ {[%emt 0:00:22]} 45. Kb4 {[%emt 0:00:24]} Rxg3 {[%emt 0:00:29]} 46. Rxh5 {[%emt 0:00:22]} Rg4 {[%emt 0:00:44]} 47. Rxe5+ {[%emt 0:00:24]} Kd6 {[%emt 0:00:21]} 48. Re8 {[%emt 0:00:40]} Rxh4 {[%emt 0:00:22]} 49. Kc3 {[%emt 0:00:51]} Rh3+ {[%emt 0:00:36]} 50. Kd4 {[%emt 0:00:27]} Ra3 {[%emt 0:00:28]} 51. Rh8 {[%emt 0:00:54]} Ra4+ {[%emt 0:00:24]} 52. Ke3 {[%emt 0:00:27]} Rxa2 {[%emt 0:00:26]} 53. Rh6+ {[%emt 0:00:21]} Ke5 {[%emt 0:00:26]} 54. Rh5+ {[%emt 0:00:26]} Kd6 {[%emt 0:00:23]} 55. Rf5 {[%emt 0:00:36]} Ra3+ {[%emt 0:00:24]} 56. Kf4 {[%emt 0:00:24]} Ra7 {[%emt 0:00:23]} 57. Rf6+ {[%emt 0:00:29]} Ke7 {[%emt 0:00:27]} 58. Ke5 {[%emt 0:00:22]} Ra5 {[%emt 0:00:24]} 59. Rb6 {[%emt 0:00:24]} Kd7 {[%emt 0:01:25]} 60. Rb7+ {[%emt 0:00:21]} Ke8 {[%emt 0:00:38]} 61. Rc7 {[%emt 0:00:26]} Rb5 {[%emt 0:00:31]} 62. Kd6 {[%emt 0:00:27]} Rb6+ {[%emt 0:00:38]} 63. Rc6 {[%emt 0:00:21]} Rb8 {[%emt 0:00:35]} 64. Kc7 {[%emt 0:00:42]} Rb4 {[%emt 0:00:39]} 65. d6 {[%emt 0:00:24]} Rd4 {[%emt 0:00:33]} 66. e5 {[%emt 0:00:41]} Rd5 {[%emt 0:00:32]} 67. Kc8 {[%emt 0:00:27]} Rd4 {[%emt 0:01:05]} 68. Rc7 {[%emt 0:00:24]} 1-0

[Event "Delancey UK Schools 2019 U14"]
[Site "Daventry"]
[Date "2019.09.24"]
[Round "2.10"]
[White "Ismail, Mohammed Aayan"]
[Black "Anika Rachna Roy"]
[Result "1-0"]
[ECO "A10"]
[WhiteElo "1583"]
[BlackElo "1392"]
[Annotator "NA"]
[PlyCount "95"]
[EventDate "2019.09.24"]
[EventCountry "GBR"]
[SourceTitle "playchess.com"]
[Source "ChessBase"]
[SourceQuality "1"]
[TimeControl "40/5400+30:1800+30"]

1. c4 {[%emt 1:10:11]} b6 {[%emt 1:10:13]} 2. Nc3 {[%emt 0:00:42]} Bb7 {[%emt 0:00:22]} 3. e4 {[%emt 0:00:21]} e6 {[%emt 0:00:30]} 4. Nge2 {[%emt 0:00:53]} g6 {[%emt 0:01:08]} 5. g3 {[%emt 0:00:31]} Bg7 {[%emt 0:00:29]} 6. Bg2 {[%emt 0:00:22]} c5 {[%emt 0:00:36]} 7. d3 {[%emt 0:00:47]} Nc6 {[%emt 0:00:31]} 8. Bf4 {[%emt 0:00:47]} a6 {[%emt 0:01:48]} 9. Qd2 {[%emt 0:00:53]} Nge7 {[%emt 0:00:29]} 10. Bh6 {[%emt 0:01:28]} O-O {[%emt 0:01:36]} 11. Bxg7 {[%emt 0:00:23]} Kxg7 {[%emt 0:00:22]} 12. h4 {[%emt 0:00:25]} Ng8 {[%emt 0:05:00]} 13. Qe3 {[%emt 0:04:26]} e5 {[%emt 0:03:32]} 14. Nd5 {[%emt 0:01:21]} Nd4 {[%emt 0:01:00]} 15. Nxd4 {[%emt 0:01:07]} cxd4 {[%emt 0:00:27]} 16. Qd2 {[%emt 0:00:47]} Bxd5 {[%emt 0:01:14]} 17. cxd5 {[%emt 0:01:23]} d6 {[%emt 0:00:35]} 18. Rc1 {[%emt 0:01:35]} Rc8 {[%emt 0:01:25]} 19. Bh3 {[%emt 0:02:02]} Rxc1+ {[%emt 0:02:03]} 20. Qxc1 {[%emt 0:00:25]} Ne7 {[%emt 0:01:37]} 21. h5 {[%emt 0:02:17]} Ng8 {[%emt 0:01:46]} 22. hxg6 {[%emt 0:00:43]} fxg6 {[%emt 0:00:58]} 23. Be6 {[%emt 0:00:57]} h5 {[%emt 0:01:44]} 24. Qc6 {[%emt 0:05:24]} Qf6 {[%emt 0:01:31]} 25. Rh2 {[%emt 0:01:21]} Qg5 {[%emt 0:01:00]} 26. Qc7+ {[%emt 0:00:49]} Ne7 {[%emt 0:00:38]} 27. Kd1 {[%emt 0:00:43]} Qf6 {[%emt 0:00:33]} 28. Qxb6 {[%emt 0:00:37]} Qf3+ {[%emt 0:00:30]} 29. Kd2 {[%emt 0:00:22]} Qf6 {[%emt 0:00:39]} 30. Qxd6 {[%emt 0:00:34]} a5 {[%emt 0:00:31]} 31. Qc7 {[%emt 0:00:33]} Qg5+ {[%emt 0:00:23]} 32. Kd1 {[%emt 0:00:23]} Qf6 {[%emt 0:00:34]} 33. f4 {[%emt 0:00:39]} exf4 {[%emt 0:00:31]} 34. gxf4 {[%emt 0:00:31]} Kh6 {[%emt 0:00:31]} 35. Rf2 {[%emt 0:00:26]} Qh4 {[%emt 0:00:25]} 36. Ke2 {[%emt 0:00:23]} Qf6 {[%emt 0:00:35]} 37. Qc5 {[%emt 0:00:43]} Ng8 {[%emt 0:00:32]} 38. e5 {[%emt 0:00:23]} Qd8 {[%emt 0:00:27]} 39. Qxd4 {[%emt 0:00:26]} Qb8 {[%emt 0:00:30]} 40. Bxg8 {[%emt 0:00:35]} Rxg8 {[%emt 0:00:21]} 41. d6 {[%emt 0:30:31]} Qc8 {[%emt 0:30:29]} 42. Qc4 {[%emt 0:00:24]} Qd8 {[%emt 0:00:25]} 43. d4 {[%emt 0:00:28]} Re8 {[%emt 0:00:24]} 44. f5 {[%emt 0:00:32]} Qxd6 {[%emt 0:00:48]} 45. fxg6 {[%emt 0:00:42]} Qd7 {[%emt 0:00:23]} 46. Qf7 {[%emt 0:00:25]} Qg4+ {[%emt 0:00:25]} 47. Kd3 {[%emt 0:00:29]} Qh3+ {[%emt 0:00:30]} 48. Rf3 {[%emt 0:00:22]} 1-0

[Event "Delancey UK Schools 2019 U14"]
[Site "Daventry"]
[Date "2019.09.24"]
[Round "2.11"]
[White "Saunders, Aron"]
[Black "Britnell, Jonathan"]
[Result "1-0"]
[ECO "C54"]
[WhiteElo "1428"]
[BlackElo "1650"]
[Annotator "NA"]
[PlyCount "83"]
[EventDate "2019.09.24"]
[EventCountry "GBR"]
[SourceTitle "playchess.com"]
[Source "ChessBase"]
[SourceQuality "1"]
[TimeControl "40/5400+30:1800+30"]

1. e4 {[%emt 1:10:12]} e5 {[%emt 1:10:11]} 2. Nf3 {[%emt 0:00:22]} Nc6 {[%emt 0:00:22]} 3. Bc4 {[%emt 0:00:21]} Nf6 {[%emt 0:00:21]} 4. d3 {[%emt 0:00:21]} Bc5 {[%emt 0:00:28]} 5. Bg5 {[%emt 0:00:24]} h6 {[%emt 0:00:25]} 6. Bh4 {[%emt 0:00:22]} g5 {[%emt 0:00:30]} 7. Bg3 {[%emt 0:00:33]} d6 {[%emt 0:00:23]} 8. c3 {[%emt 0:00:38]} a6 {[%emt 0:00:31]} 9. Nbd2 {[%emt 0:01:19]} Ne7 {[%emt 0:02:12]} 10. d4 {[%emt 0:01:54]} exd4 {[%emt 0:00:56]} 11. cxd4 {[%emt 0:00:22]} Ba7 {[%emt 0:00:33]} 12. Qb3 {[%emt 0:01:08]} d5 {[%emt 0:02:07]} 13. exd5 {[%emt 0:01:22]} Nfxd5 {[%emt 0:00:54]} 14. O-O {[%emt 0:01:13]} b5 {[%emt 0:01:00]} 15. Bxd5 {[%emt 0:01:00]} Nxd5 {[%emt 0:00:40]} 16. Rfe1+ {[%emt 0:01:24]} Be6 {[%emt 0:00:24]} 17. Be5 {[%emt 0:03:38]} Rg8 {[%emt 0:00:45]} 18. h3 {[%emt 0:01:57]} Qd7 {[%emt 0:02:19]} 19. Ne4 {[%emt 0:01:28]} O-O-O {[%emt 0:02:17]} 20. Rac1 {[%emt 0:01:55]} Bb6 {[%emt 0:00:36]} 21. Nc5 {[%emt 0:02:44]} Bxc5 {[%emt 0:03:32]} 22. Rxc5 {[%emt 0:00:22]} Kb7 {[%emt 0:00:40]} 23. Rec1 {[%emt 0:00:49]} Rc8 {[%emt 0:00:24]} 24. a3 {[%emt 0:01:03]} c6 {[%emt 0:01:00]} 25. Qd1 {[%emt 0:01:18]} g4 {[%emt 0:00:55]} 26. Nd2 {[%emt 0:01:37]} gxh3 {[%emt 0:01:24]} 27. g3 {[%emt 0:00:59]} f5 {[%emt 0:00:23]} 28. Nb3 {[%emt 0:01:02]} Qd8 {[%emt 0:00:57]} 29. Qc2 {[%emt 0:00:55]} Qb6 {[%emt 0:00:23]} 30. Kh2 {[%emt 0:01:02]} h5 {[%emt 0:00:36]} 31. a4 {[%emt 0:00:21]} h4 {[%emt 0:00:24]} 32. a5 {[%emt 0:00:47]} Qd8 {[%emt 0:05:32]} 33. Rxc6 {[%emt 0:00:23]} Nb4 {[%emt 0:00:59]} 34. Rb6+ {[%emt 0:01:23]} Qxb6 {[%emt 0:00:37]} 35. Qxc8+ {[%emt 0:00:22]} Rxc8 {[%emt 0:00:54]} 36. axb6 {[%emt 0:00:23]} Bxb3 {[%emt 0:00:29]} 37. Rxc8 {[%emt 0:00:38]} Kxc8 {[%emt 0:00:23]} 38. gxh4 {[%emt 0:00:23]} Bf7 {[%emt 0:00:33]} 39. Kxh3 {[%emt 0:00:26]} Nd3 {[%emt 0:00:36]} 40. f4 {[%emt 0:00:42]} Kb7 {[%emt 0:00:50]} 41. b3 {[%emt 0:30:46]} Kxb6 {[%emt 0:30:46]} 42. Kg3 {[%emt 0:00:22]} 1-0

[Event "Delancey UK Schools 2019 U14"]
[Site "Daventry"]
[Date "2019.09.24"]
[Round "2.12"]
[White "Woltery, Nicolai"]
[Black "Jayanthi, Harshita"]
[Result "1-0"]
[ECO "A22"]
[WhiteElo "1864"]
[BlackElo "1217"]
[Annotator "NA"]
[PlyCount "62"]
[EventDate "2019.09.24"]
[EventCountry "GBR"]
[SourceTitle "playchess.com"]
[Source "ChessBase"]
[SourceQuality "1"]
[TimeControl "40/5400+30:1800+30"]

1. c4 {[%emt 1:10:12]} e5 {[%emt 1:10:13]} 2. Nc3 {[%emt 0:00:22]} Nf6 {[%emt 0:00:30]} 3. Nf3 {[%emt 0:00:24]} d6 {[%emt 0:00:43]} 4. h3 {[%emt 0:02:11]} Be6 {[%emt 0:01:24]} 5. d3 {[%emt 0:00:32]} Nbd7 {[%emt 0:00:52]} 6. e4 {[%emt 0:00:38]} c5 {[%emt 0:01:08]} 7. Ng5 {[%emt 0:01:11]} Qe7 {[%emt 0:01:02]} 8. g3 {[%emt 0:01:15]} h6 {[%emt 0:00:39]} 9. Nxe6 {[%emt 0:00:28]} Qxe6 {[%emt 0:00:23]} 10. Nb5 {[%emt 0:01:16]} Rc8 {[%emt 0:01:49]} 11. Nxa7 {[%emt 0:00:30]} Rc7 {[%emt 0:01:02]} 12. Bg2 {[%emt 0:01:04]} Be7 {[%emt 0:00:44]} 13. h4 {[%emt 0:03:19]} O-O {[%emt 0:00:56]} 14. Bh3 {[%emt 0:00:41]} Ng4 {[%emt 0:01:28]} 15. Bxg4 {[%emt 0:00:34]} f5 {[%emt 0:00:36]} 16. Bxf5 {[%emt 0:01:24]} Qf7 {[%emt 0:00:42]} 17. Qg4 {[%emt 0:01:20]} Nf6 {[%emt 0:01:12]} 18. Qg6 {[%emt 0:00:39]} Qxg6 {[%emt 0:00:45]} 19. Bxg6 {[%emt 0:00:22]} Ng4 {[%emt 0:00:37]} 20. Bf5 {[%emt 0:00:36]} Bd8 {[%emt 0:01:00]} 21. Bxg4 {[%emt 0:00:29]} Rcf7 {[%emt 0:00:53]} 22. Be6 {[%emt 0:00:22]} Ba5+ {[%emt 0:00:40]} 23. Bd2 {[%emt 0:00:28]} Bxd2+ {[%emt 0:00:23]} 24. Kxd2 {[%emt 0:00:21]} Kh8 {[%emt 0:00:31]} 25. Bxf7 {[%emt 0:00:23]} Rxf7 {[%emt 0:00:22]} 26. Ke3 {[%emt 0:00:22]} b6 {[%emt 0:00:30]} 27. Nb5 {[%emt 0:00:23]} Kh7 {[%emt 0:00:28]} 28. Nxd6 {[%emt 0:00:23]} Rf8 {[%emt 0:00:36]} 29. f4 exf4+ {[%emt 0:00:27]} 30. gxf4 {[%emt 0:00:44]} Kg6 {[%emt 0:01:04]} 31. f5+ Kh7 {[%emt 0:00:30]} 1-0

[Event "Delancey UK Schools 2019 U14"]
[Site "Daventry"]
[Date "2019.09.24"]
[Round "3.1"]
[White "Ratnesan, Ranesh"]
[Black "Kan, Toby"]
[Result "1-0"]
[ECO "A60"]
[WhiteElo "2180"]
[BlackElo "1714"]
[Annotator "ChessBase"]
[PlyCount "67"]
[EventDate "2019.09.24"]
[EventCountry "GBR"]
[SourceTitle "playchess.com"]
[Source "ChessBase"]
[SourceQuality "1"]
[TimeControl "40/5400+30:1800+30"]

1. d4 {[%emt 1:10:12]} Nf6 {[%emt 1:10:11]} 2. c4 {[%emt 0:00:27]} c5 {[%emt 0:00:21]} 3. d5 {[%emt 0:00:27]} e6 {[%emt 0:00:21]} 4. Nc3 {[%emt 0:00:27]} exd5 {[%emt 0:00:21]} 5. cxd5 {[%emt 0:00:28]} d6 {[%emt 0:00:21]} 6. Bf4 {[%emt 0:00:28]} Nh5 {[%emt 0:01:09]} 7. Bd2 {[%emt 0:03:06]} g6 {[%emt 0:01:11]} 8. e4 {[%emt 0:02:07]} Bg7 {[%emt 0:00:52]} 9. Be2 {[%emt 0:01:46]} Nf6 {[%emt 0:01:23]} 10. Be3 {[%emt 0:02:10]} a6 {[%emt 0:01:21]} 11. a4 {[%emt 0:01:51]} Nbd7 {[%emt 0:01:43]} 12. Nf3 {[%emt 0:01:30]} O-O {[%emt 0:01:41]} 13. Nd2 {[%emt 0:00:56]} Re8 {[%emt 0:00:44]} 14. O-O {[%emt 0:00:43]} Rb8 {[%emt 0:01:43]} 15. Qc2 {[%emt 0:01:02]} Qe7 {[%emt 0:00:49]} 16. h3 {[%emt 0:00:52]} b6 {[%emt 0:01:59]} 17. Rae1 {[%emt 0:00:46]} Qd8 {[%emt 0:00:44]} 18. Bf4 {[%emt 0:01:14]} Ne5 {[%emt 0:00:46]} 19. Bg3 {[%emt 0:00:30]} Nh5 {[%emt 0:01:38]} 20. Bh2 {[%emt 0:02:32]} Qh4 {[%emt 0:02:32]} 21. Bxh5 {[%emt 0:02:25]} Qxh5 {[%emt 0:01:10]} 22. f4 {[%emt 0:00:22]} Nd7 {[%emt 0:01:04]} 23. Nc4 {[%emt 0:00:35]} Bf8 {[%emt 0:01:15]} 24. e5 {[%emt 0:00:53]} dxe5 {[%emt 0:01:21]} 25. fxe5 {[%emt 0:00:47]} b5 {[%emt 0:02:26]} 26. e6 {[%emt 0:01:10]} fxe6 {[%emt 0:00:31]} 27. dxe6 {[%emt 0:00:30]} bxc4 {[%emt 0:01:09]} 28. exd7 {[%emt 0:00:31]} Bxd7 {[%emt 0:00:26]} 29. Bxb8 {[%emt 0:00:39]} Rxb8 {[%emt 0:00:23]} 30. Qf2 {[%emt 0:00:58]} Qf5 {[%emt 0:00:45]} 31. Qg3 {[%emt 0:00:43]} Rxb2 {[%emt 0:02:39]} 32. Rxf5 {[%emt 0:00:23]} Bxf5 {[%emt 0:00:21]} 33. Nd5 {[%emt 0:00:40]} Rb3 {[%emt 0:00:36]} 34. Qe5 {[%emt 0:00:25]} 1-0